fUSD/lending_fUSD_20260309
["ID","MTS","AMOUNT","RATE_DAILY","PERIOD"]
[408037597,1773065441238,-307.32256405,0.00019406,2]
[408037598,1773065441247,-500.0,0.00019412,2]
[408037599,1773065441257,-500.0,0.00019412,2]
[408037600,1773065441266,-500.0,0.00019412,2]
[408037601,1773065441275,-500.0,0.00019412,2]
[408037602,1773065441284,-500.0,0.00019412,2]
[408037603,1773065441294,-500.0,0.00019412,2]
[408037604,1773065441303,-500.0,0.00019412,2]
[408037605,1773065441312,-500.0,0.00019412,2]
[408037606,1773065441322,-500.0,0.00019412,2]
[408037607,1773065441331,-500.0,0.00019412,2]
[408037608,1773065441340,-500.0,0.00019412,2]
[408037609,1773065441350,-177.80366162,0.00019425,2]
[408037610,1773065441359,-225.0,0.00019449,2]
[408037611,1773065441369,-1000.0,0.00019452,2]
[408037612,1773065441378,-828.0,0.00019471,2]
[408037613,1773065441388,-151.0,0.00019486,2]
[408037614,1773065441397,-828.0,0.00019494,2]
[408037615,1773065441406,-1838.02440239,0.00019512,2]
[408037616,1773065441416,-202.0,0.00019523,2]
[408037617,1773065441425,-500.0,0.0001954,2]
[408037618,1773065441436,-3898.72871201,0.00019567,2]
[408037619,1773065441446,-368.0,0.00019569,2]
[408037620,1773065441455,-202.0,0.00019571,2]
[408037621,1773065441466,-151.0,0.00019572,2]
[408037622,1773065441475,-269.08264855,0.0001958,2]
[408037623,1773065441485,-350.0,0.00019596,2]
[408037624,1773065441495,-1303.73596727,0.000196,2]
[408037625,1773065441506,-177.80366162,0.00019616,2]
[408037626,1773065441516,-150.0,0.00019618,2]
[408037627,1773065441526,-500.0,0.00019618,2]
[408037628,1773065441536,-500.0,0.00019618,2]
[408037629,1773065441546,-500.0,0.00019618,2]
[408037630,1773065441556,-1055.0,0.00019618,2]
[408037631,1773065441566,-500.0,0.00019618,2]
[408037632,1773065441575,-490.0,0.00019618,2]
[408037633,1773065441585,-500.0,0.00019618,2]
[408037634,1773065441594,-150.0,0.00019618,2]
[408037635,1773065441603,-150.0,0.00019618,2]
[408037636,1773065441613,-150.0,0.00019618,2]
[408037637,1773065441622,-1466.0,0.00019618,2]
[408037638,1773065441631,-500.0,0.00019618,2]
[408037639,1773065441640,-500.0,0.00019618,2]
[408037640,1773065441649,-500.0,0.00019618,2]
[408037641,1773065441660,-150.0,0.00019618,2]
[408037642,1773065441669,-150.0,0.00019618,2]
[408037643,1773065441679,-709.0,0.00019618,2]
[408037644,1773065441689,-500.0,0.00019618,2]
[408037645,1773065441698,-500.0,0.00019618,2]
[408037646,1773065441708,-500.0,0.00019618,2]
[408037647,1773065441719,-150.0,0.00019618,2]
[408037648,1773065441728,-500.0,0.00019618,2]
[408037649,1773065441738,-500.0,0.00019618,2]
[408037650,1773065441747,-500.0,0.00019618,2]
[408037651,1773065441757,-150.0,0.00019618,2]
[408037652,1773065441766,-150.0,0.00019618,2]
[408037653,1773065441776,-733.0,0.00019618,2]
[408037654,1773065441786,-500.0,0.00019618,2]
[408037655,1773065441795,-150.0,0.00019618,2]
[408037656,1773065441805,-500.0,0.00019618,2]
[408037657,1773065441814,-500.0,0.00019618,2]
[408037658,1773065441824,-500.0,0.00019618,2]
[408037659,1773065441834,-500.0,0.00019618,2]
[408037660,1773065441843,-719.0,0.00019618,2]
[408037661,1773065441853,-500.0,0.00019618,2]
[408037662,1773065441863,-500.0,0.00019618,2]
[408037663,1773065441872,-1838.02440239,0.00019641,2]
[408037664,1773065441881,-151.0,0.00019657,2]
[408037665,1773065441891,-172.87392778,0.00019659,2]
[408037666,1773065441900,-431.0,0.0001967,5]
[408037667,1773065441909,-150.0,0.00019673,2]
[408037668,1773065441918,-500.0,0.00019673,2]
[408037669,1773065441928,-500.0,0.00019673,2]
[408037670,1773065441937,-500.0,0.00019673,2]
[408037671,1773065441947,-1055.0,0.00019673,2]
[408037672,1773065441956,-500.0,0.00019673,2]
[408037673,1773065441966,-490.0,0.00019673,2]
[408037674,1773065441976,-500.0,0.00019673,2]
[408037675,1773065441985,-150.0,0.00019673,2]
[408037676,1773065441995,-150.0,0.00019673,2]
[408037677,1773065442004,-150.0,0.00019673,2]
[408037678,1773065442013,-1466.0,0.00019673,2]
[408037679,1773065442023,-500.0,0.00019673,2]
[408037680,1773065442032,-500.0,0.00019673,2]
[408037681,1773065442041,-500.0,0.00019673,2]
[408037682,1773065442051,-150.10489082,0.00019673,2]
[408037683,1773065442060,-709.0,0.00019673,2]
[408037684,1773065442070,-500.0,0.00019673,2]
[408037685,1773065442080,-500.0,0.00019673,2]
[408037686,1773065442090,-500.0,0.00019673,2]
[408037687,1773065442099,-500.0,0.00019673,2]
[408037688,1773065442109,-500.0,0.00019673,2]
[408037689,1773065442118,-500.0,0.00019673,2]
[408037690,1773065442132,-733.0,0.00019673,2]
[408037691,1773065442141,-500.0,0.00019673,2]
[408037692,1773065442150,-150.0,0.00019673,2]
[408037693,1773065442160,-500.0,0.00019673,2]
[408037694,1773065442170,-500.0,0.00019673,2]
[408037695,1773065442181,-500.0,0.00019673,2]
[408037696,1773065442190,-500.0,0.00019673,2]
[408037697,1773065442202,-719.0,0.00019673,2]
[408037698,1773065442212,-500.0,0.00019673,2]
[408037699,1773065442222,-500.0,0.00019673,2]
[408037700,1773065442231,-847.0,0.0001968,2]
[408037701,1773065442240,-202.0,0.0001969,2]
[408037702,1773065442250,-1000.0,0.00019726,2]
[408037703,1773065442259,-201.82767376,0.00019728,2]
[408037704,1773065442269,-500.0,0.00019728,2]
[408037705,1773065442278,-500.0,0.00019728,2]
[408037706,1773065442288,-500.0,0.00019728,2]
[408037707,1773065442297,-1055.0,0.00019728,2]
[408037709,1773065442306,-500.0,0.00019728,2]
[408037711,1773065442315,-490.0,0.00019728,2]
[408037712,1773065442325,-276.29568284,0.00019728,2]
[408037714,1773065442334,-232.79888752,0.00019728,2]
[408037716,1773065442343,-150.0,0.00019728,2]
[408037717,1773065442352,-1466.0,0.00019728,2]
[408037718,1773065442362,-500.0,0.00019728,2]
[408037719,1773065442372,-500.0,0.00019728,2]
[408037720,1773065442381,-500.0,0.00019728,2]
[408037721,1773065442390,-709.0,0.00019728,2]
[408037722,1773065442399,-436.99459924,0.00019728,2]
[408037723,1773065442408,-500.0,0.00019728,2]
[408037724,1773065442418,-500.0,0.00019728,2]
[408037725,1773065442427,-500.0,0.00019728,2]
[408037726,1773065442436,-500.0,0.00019728,2]
[408037727,1773065442445,-500.0,0.00019728,2]
[408037728,1773065442454,-733.0,0.00019728,2]
[408037729,1773065442464,-500.0,0.00019728,2]
[408037730,1773065442474,-150.0,0.00019728,2]
[408037731,1773065442484,-500.0,0.00019728,2]
[408037732,1773065442493,-410.57620522,0.00019728,2]
[408037733,1773065442502,-500.0,0.00019728,2]
[408037734,1773065442512,-500.0,0.00019728,2]
[408037735,1773065442522,-719.0,0.00019728,2]
[408037736,1773065442531,-203.29632904,0.00019728,2]
[408037737,1773065442540,-500.0,0.00019728,2]
[408037738,1773065442549,-151.0,0.00019743,2]
[408037739,1773065442559,-1838.02440239,0.00019771,2]
[408037740,1773065442568,-179.0,0.00019777,2]
[408037741,1773065442577,-500.0,0.00019782,2]
[408037742,1773065442587,-423.89418644,0.00019782,2]
[408037743,1773065442596,-500.0,0.00019782,2]
[408037744,1773065442605,-1055.0,0.00019782,2]
[408037745,1773065442614,-500.0,0.00019782,2]
[408037746,1773065442623,-490.0,0.00019782,2]
[408037747,1773065442632,-152.96458514,0.00019782,2]
[408037748,1773065442641,-1466.0,0.00019782,2]
[408037749,1773065442651,-500.0,0.00019782,2]
[408037750,1773065442660,-361.02563779,0.00019782,2]
[408037751,1773065442669,-500.0,0.00019782,2]
[408037752,1773065442678,-709.0,0.00019782,2]
[408037753,1773065442687,-500.0,0.00019782,2]
[408037754,1773065442696,-500.0,0.00019782,2]
[408037755,1773065442706,-500.0,0.00019782,2]
[408037756,1773065442715,-500.0,0.00019782,2]
[408037757,1773065442724,-500.0,0.00019782,2]
[408037758,1773065442734,-733.0,0.00019782,2]
[408037759,1773065442743,-500.0,0.00019782,2]
[408037760,1773065442752,-150.0,0.00019782,2]
[408037761,1773065442762,-500.0,0.00019782,2]
[408037763,1773065442772,-500.0,0.00019782,2]
[408037765,1773065442782,-500.0,0.00019782,2]
[408037767,1773065442791,-719.0,0.00019782,2]
[408037768,1773065442800,-500.0,0.00019782,2]
[408037770,1773065442809,-3826.204,0.00019787,2]
[408037773,1773065442819,-175.991,0.00019787,2]
[408037774,1773065442828,-500.0,0.00019793,2]
[408037776,1773065442838,-500.0,0.00019793,2]
[408037778,1773065442847,-2000.0,0.000198,2]
[408037780,1773065442856,-2000.0,0.000198,2]
[408037782,1773065442865,-217.94309222,0.000198,2]
[408037784,1773065442874,-2932.42,0.000198,2]
[408037786,1773065442883,-2932.42,0.000198,2]
[408037787,1773065442893,-4122.38,0.000198,2]
[408037788,1773065442902,-3211.0,0.00019807,2]
[408037789,1773065442911,-202.0,0.00019807,2]
[408037790,1773065442920,-328.79,0.00019824,2]
[408037791,1773065442929,-151.0,0.00019829,2]
[408037792,1773065442938,-500.0,0.00019835,2]
[408037793,1773065442949,-500.0,0.00019835,2]
[408037794,1773065442959,-500.0,0.00019835,2]
[408037795,1773065442970,-500.0,0.00019837,2]
[408037796,1773065442979,-150.0,0.00019837,2]
[408037797,1773065442988,-1055.0,0.00019837,2]
[408037798,1773065442998,-500.0,0.00019837,2]
[408037799,1773065443009,-490.0,0.00019837,2]
[408037800,1773065443018,-1466.0,0.00019837,2]
[408037801,1773065443028,-500.0,0.00019837,2]
[408037802,1773065443038,-500.0,0.00019837,2]
[408037803,1773065443049,-709.0,0.00019837,2]
[408037804,1773065443059,-500.0,0.00019837,2]
[408037805,1773065443069,-500.0,0.00019837,2]
[408037806,1773065443079,-500.0,0.00019837,2]
[408037807,1773065443088,-500.0,0.00019837,2]
[408037808,1773065443097,-500.0,0.00019837,2]
[408037809,1773065443107,-733.0,0.00019837,2]
[408037810,1773065443116,-500.0,0.00019837,2]
[408037811,1773065443129,-150.0,0.00019837,2]
[408037812,1773065443139,-500.0,0.00019837,2]
[408037813,1773065443148,-500.0,0.00019837,2]
[408037814,1773065443157,-500.0,0.00019837,2]
[408037815,1773065443167,-719.0,0.00019837,2]
[408037816,1773065443176,-500.0,0.00019837,2]
[408037817,1773065443185,-217.94309222,0.0001985,2]
[408037818,1773065443195,-250.0,0.00019858,2]
[408037819,1773065443205,-1500.0,0.00019868,2]
[408037820,1773065443214,-1000.0,0.00019869,2]
[408037821,1773065443223,-1000.0,0.00019869,2]
[408037822,1773065443232,-1000.0,0.00019869,2]
[408037823,1773065443241,-1000.0,0.00019869,2]
[408037824,1773065443251,-1000.0,0.00019869,2]
[408037825,1773065443259,-1000.0,0.00019869,2]
[408037826,1773065443268,-1000.0,0.00019869,2]
[408037827,1773065443277,-2436.19,0.00019871,2]
[408037828,1773065443286,-500.0,0.00019873,2]
[408037829,1773065443296,-323.77109867,0.00019873,2]
[408037830,1773065443306,-500.0,0.00019873,2]
[408037831,1773065443315,-500.0,0.00019873,2]
[408037832,1773065443324,-500.0,0.00019873,2]
[408037833,1773065443334,-500.56489866,0.00019873,2]
[408037834,1773065443345,-150.0,0.00019873,2]
[408037835,1773065443354,-253.0,0.00019875,2]
[408037836,1773065443364,-195.0,0.00019886,2]
[408037837,1773065443375,-500.0,0.0001989,2]
[408037838,1773065443385,-419.71022999,0.0001989,2]
[408037839,1773065443396,-419.71022998,0.00019892,2]
[408037840,1773065443406,-500.0,0.00019892,2]
[408037841,1773065443417,-500.0,0.00019892,2]
[408037842,1773065443428,-490.0,0.00019892,2]
[408037843,1773065443438,-1055.0,0.00019892,2]
[408037844,1773065443449,-1466.0,0.00019892,2]
[408037845,1773065443460,-500.0,0.00019892,2]
[408037846,1773065443470,-709.0,0.00019892,2]
[408037847,1773065443479,-500.0,0.00019892,2]
[408037848,1773065443489,-500.0,0.00019892,2]
[408037849,1773065443500,-500.0,0.00019892,2]
[408037850,1773065443509,-500.0,0.00019892,2]
[408037851,1773065443717,-733.0,0.00019892,2]
[408037852,1773065443728,-501.70358089,0.00019892,2]
[408037853,1773065443739,-150.0,0.00019892,2]
[408037854,1773065443748,-178.75730998,0.00019892,2]
[408037855,1773065443757,-500.0,0.00019892,2]
[408037856,1773065443767,-500.0,0.00019892,2]
[408037857,1773065443776,-719.0,0.00019892,2]
[408037858,1773065443785,-500.0,0.00019892,2]
[408037859,1773065443794,-419.71022998,0.00019893,2]
[408037860,1773065443803,-419.71022998,0.00019895,2]
[408037861,1773065443812,-419.71022998,0.00019897,2]
[408037862,1773065443821,-419.71022998,0.00019898,2]
[408037863,1773065443830,-6629.51072437,0.000199,3]
[408037864,1773065443840,-5800.0,0.000199,2]
[408037865,1773065443849,-10000.0,0.000199,2]
[408037866,1773065443858,-2000.0,0.000199,2]
[408037867,1773065443867,-250.0,0.000199,2]
[408037868,1773065443876,-25000.0,0.000199,3]
[408037869,1773065443886,-484.31397246,0.000199,2]
[408037870,1773065443895,-12457.73608219,0.000199,3]
[408037871,1773065443904,-419.71022998,0.000199,2]
[408037872,1773065443915,-1838.02440239,0.000199,2]
[408037873,1773065443924,-4834.85672202,0.000199,2]
[408037874,1773065443934,-3898.72871201,0.000199,2]
[408037875,1773065443943,-269.08264855,0.000199,2]
[408037876,1773065443952,-8531.31265296,0.000199,2]
[408037877,1773065443962,-217.94309222,0.000199,2]
[408037878,1773065443972,-14296.20661548,0.000199,2]
[408037879,1773065443981,-189.1597078,0.000199,2]
[408037880,1773065443992,-5329.21163729,0.000199,2]
[408037881,1773065444001,-250.0,0.00019905,2]
[408037882,1773065444010,-150.0,0.00019906,3]
[408037883,1773065444020,-151.0,0.00019914,2]
[408037884,1773065444029,-339.0,0.00019939,2]
[408037885,1773065444038,-250.0,0.00019946,2]
[408037886,1773065444047,-500.0,0.00019947,2]
[408037887,1773065444056,-500.0,0.00019947,2]
[408037888,1773065444066,-490.0,0.00019947,2]
[408037889,1773065444075,-1055.0,0.00019947,2]
[408037890,1773065444085,-1466.0,0.00019947,2]
[408037891,1773065444094,-709.0,0.00019947,2]
[408037892,1773065444104,-500.0,0.00019947,2]
[408037893,1773065444113,-733.0,0.00019947,2]
[408037894,1773065444125,-500.0,0.00019947,2]
[408037895,1773065444135,-500.0,0.00019947,2]
[408037896,1773065444144,-719.0,0.00019947,2]
[408037897,1773065444153,-153.45374546,0.00019948,2]
[408037898,1773065444163,-1108.21987424,0.0001995,15]
[408037899,1773065444174,-187.78006525,0.00019954,2]
[408037900,1773065444183,-282.71673119,0.00019954,2]
[408037901,1773065444192,-150.0,0.00019973,2]
[408037902,1773065444204,-3664.0,0.00019973,2]
[408037903,1773065444214,-250.0,0.00019973,2]
[408037904,1773065444223,-118906.15753635,0.0001998,2]
[408037905,1773065444232,-150.182,0.0001999,2]
[408037906,1773065444242,-150.0,0.0001999,2]
[408037907,1773065444253,-150.54,0.0001999,2]
[408037908,1773065444262,-150.1,0.0001999,2]
[408037909,1773065444271,-150.0,0.0001999,2]
[408037910,1773065444280,-150.0,0.0001999,2]
[408037911,1773065444289,-150.0,0.0001999,2]
[408037912,1773065444299,-150.186,0.0001999,2]
[408037913,1773065444307,-619.0,0.0001999,2]
[408037914,1773065444316,-1342.0,0.0001999,2]
[408037915,1773065444325,-1042.0,0.0001999,2]
[408037916,1773065444334,-1279.0,0.0001999,2]
[408037917,1773065444344,-150.0,0.0001999,2]
[408037918,1773065444353,-159.0,0.0001999,2]
[408037919,1773065444362,-922.0,0.0001999,2]
[408037920,1773065444371,-1213.0,0.0001999,2]
[408037921,1773065444380,-163.38707578,0.0001999,2]
[408037922,1773065444389,-151.0,0.00019997,2]
[408037923,1773065444399,-151.0,0.00019997,2]
[408037924,1773065444410,-300.0,0.00019999,2]
[408037925,1773065444421,-679.03328013,0.00019999,2]
[408037926,1773065444431,-300.0,0.00019999,2]
[408037927,1773065444439,-666.0,0.00019999,2]
[408037928,1773065444449,-300.0,0.00019999,2]
[408037929,1773065444458,-500.0,0.00019999,2]
[408037930,1773065444468,-97987.3615198,0.00019999,2]
[408037931,1773065444477,-500.0,0.00019999,2]
[408037932,1773065444486,-350.0,0.00019999,2]
[408037933,1773065444494,-150.0,0.00019999,2]
[408037934,1773065444503,-33181.70399474,0.00019999,2]
[408037935,1773065444512,-500.0,0.00019999,2]
[408037936,1773065444521,-500.0,0.00019999,2]
[408037937,1773065444530,-500.0,0.00019999,2]
[408037938,1773065444539,-500.0,0.00019999,2]
[408037939,1773065444549,-500.0,0.00019999,2]
[408037940,1773065444559,-500.0,0.00019999,2]
[408037941,1773065444568,-3000.0,0.00019999,2]
[408037942,1773065444578,-500.0,0.00019999,2]
[408037943,1773065444587,-210.95556175,0.00019999,2]
[408037944,1773065444596,-545.52551133,0.00019999,2]
[408037945,1773065444608,-500.0,0.00019999,2]
[408037946,1773065444618,-500.0,0.00019999,2]
[408037947,1773065444626,-500.0,0.00019999,2]
[408037948,1773065444635,-500.0,0.00019999,2]
[408037949,1773065444644,-495.0176122,0.00019999,2]
[408037950,1773065444654,-150.0,0.00019999,2]
[408037951,1773065444662,-156.95046837,0.00019999,2]
[408037952,1773065444671,-417.02492702,0.00019999,2]
[408037953,1773065444680,-4013.0,0.0002,2]
[408037954,1773065444689,-148658.90018187,0.0002,2]
[408037968,1773065445854,-7666.47281692,0.0002,2]
[408037970,1773065445865,-2289.24178138,0.0002,2]
[408037972,1773065445880,-40983.53050248,0.0002,2]
[408037986,1773065446185,-150.0,0.00019673,2]
[408037987,1773065446195,-1152.97179547,0.0002,2]
[408037988,1773065446235,-6417.04382853,0.0002,2]
[408037989,1773065542258,200.0,8.219e-05,2]
[408037990,1773065542492,200.0,8.219e-05,2]
[408037991,1773065542730,200.0,8.219e-05,2]
[408037992,1773065606956,200.0,8.219e-05,2]
[408037993,1773065607213,200.0,8.219e-05,2]
[408037994,1773065607457,200.0,8.219e-05,2]
[408037995,1773065607754,200.0,8.219e-05,2]
[408037996,1773065608756,200.0,8.219e-05,2]
[408037997,1773065609010,200.0,8.219e-05,2]
[408037998,1773065609273,200.0,8.219e-05,2]
[408037999,1773065609520,200.0,8.219e-05,2]
[408038000,1773065609753,200.0,8.219e-05,2]
[408038001,1773065609993,200.0,8.219e-05,2]
[408038002,1773065610452,200.0,8.219e-05,2]
[408038003,1773065610690,200.0,8.219e-05,2]
[408038004,1773065610949,200.0,8.219e-05,2]
[408038005,1773065611199,200.0,8.219e-05,2]
[408038006,1773065611443,200.0,8.219e-05,2]
[408038007,1773065612392,200.0,8.219e-05,2]
[408038008,1773065612438,200.0,8.219e-05,2]
[408038064,1773065665344,200.0,8.219e-05,2]
[408038065,1773065665574,200.0,8.219e-05,2]
[408038066,1773065665831,200.0,8.219e-05,2]
[408038067,1773065666807,200.0,8.219e-05,2]
[408038068,1773065666839,200.0,8.219e-05,2]
[408038069,1773065666867,200.0,8.219e-05,2]
[408038070,1773065666894,200.0,8.219e-05,2]
[408038071,1773065666980,200.0,8.219e-05,2]
[408038072,1773065667234,200.0,8.219e-05,2]
[408038073,1773065667468,200.0,8.219e-05,2]
[408038074,1773065667706,200.0,8.219e-05,2]
[408038075,1773065667945,200.0,8.219e-05,2]
[408038076,1773065670136,-168.98,0.00014,2]
[408038077,1773065723964,200.0,8.219e-05,2]
[408038078,1773065724257,231.0,8.219e-05,2]
[408038079,1773065785815,200.0,8.219e-05,2]
[408038080,1773065786054,200.0,8.219e-05,2]
[408038081,1773065786310,253.0,8.219e-05,2]
[408038082,1773065884039,-460.75,0.000136,2]
[408038084,1773066277435,152.84,0.000136,2]
[408038085,1773066326869,5000.01,0.000136,2]
[408038086,1773066329098,-2471.02,0.000136,2]
[408038087,1773066332083,-57.97,0.000136,2]
[408038088,1773066389591,-165.69,0.00014,2]
[408039240,1773066465976,-408.0,0.000141,5]
[408041649,1773066619343,-165.34,0.00014,2]
[408041764,1773066624660,3110.90646753,0.000136,2]
[408041927,1773066632414,-212.72571705,0.00015399,2]
[408041928,1773066632424,-493.74939191,0.00015484,2]
[408041929,1773066632433,-1000.0,0.0001549,2]
[408041930,1773066632442,-1200.0,0.00015499,2]
[408041932,1773066632456,-300.0,0.00015499,2]
[408041933,1773066632466,-300.0,0.00015499,2]
[408041934,1773066632476,-372.95469177,0.000155,2]
[408041936,1773066632512,-127.04530823,0.000155,2]
[408041937,1773066632523,-500.0,0.000155,2]
[408041938,1773066632533,-500.0,0.000155,2]
[408041940,1773066632543,-500.0,0.000155,2]
[408041941,1773066632553,-188.9940742,0.000155,2]
[408041942,1773066632563,-500.0,0.000156,2]
[408041943,1773066632572,-250.0,0.0001562,2]
[408041944,1773066632581,-288.46750344,0.0001562,2]
[408041946,1773066632592,-11.89973463,0.0001562,2]
[408041947,1773066632601,-450.0,0.0001562,2]
[408041948,1773066632611,-291.17119359,0.0001562,2]
[408041950,1773066632629,-8.82880641,0.0001562,2]
[408041951,1773066632639,-300.0,0.0001573,2]
[408041952,1773066632648,-600.0,0.0001573,2]
[408041953,1773066632657,-86.052956,0.000166,2]
[408041955,1773066632676,-79.287044,0.000166,2]
[408041956,1773066632685,-209.57465599,0.00016669,2]
[408041957,1773066632694,-545.0,0.0001673,2]
[408041958,1773066632704,-782.0,0.0001677,2]
[408041960,1773066632713,-199.45738296,0.0001677,2]
[408041961,1773066632721,-195.0,0.00016939,2]
[408041962,1773066632730,-195.0,0.00016939,2]
[408041963,1773066632740,-195.0,0.00016939,2]
[408041964,1773066632750,-195.0,0.00016939,2]
[408041966,1773066632759,-160.48220019,0.00016939,2]
[408041967,1773066632768,-250.0,0.00016939,2]
[408041968,1773066632778,-420.0,0.00016954,2]
[408041969,1773066632787,-183.71,0.00016957,3]
[408041971,1773066632797,-417.95,0.00016957,2]
[408041972,1773066632806,-200.0,0.00016968,2]
[408041973,1773066632815,-501.0,0.00017,2]
[408041974,1773066632825,-162.42681283,0.00017001,7]
[408041975,1773066632834,-500.0,0.00017022,2]
[408041977,1773066632844,-1680.0,0.0001704,2]
[408041978,1773066632853,-175.55,0.00017046,2]
[408041979,1773066632862,-1852.42,0.00017075,2]
[408041980,1773066632871,-500.0,0.00017125,2]
[408041982,1773066632880,-702.63,0.00017155,2]
[408041983,1773066632890,-3240.0,0.00017172,2]
[408041984,1773066632899,-939.45629782,0.0001724,2]
[408041985,1773066632908,-500.0,0.00017523,2]
[408041986,1773066632917,-198.62387425,0.00017523,2]
[408041988,1773066632926,-550.0,0.00017523,2]
[408041989,1773066632935,-166.66,0.00017742,2]
[408041990,1773066632944,-417.95,0.00017805,2]
[408041991,1773066632954,-801.97398632,0.00017808,2]
[408041993,1773066632963,-200.0,0.00017847,2]
[408041994,1773066632973,-384.4827315,0.000179,2]
[408041995,1773066632983,-199.25,0.00018,4]
[408041996,1773066632992,-200.479585,0.00018,2]
[408041997,1773066633001,-152.0,0.00018035,3]
[408041999,1773066633011,-205.17933314,0.00018256,2]
[408042000,1773066633020,-1397.96,0.00018329,2]
[408042001,1773066633030,-500.0,0.00018356,7]
[408042002,1773066633040,-600.0,0.00018356,7]
[408042003,1773066633049,-700.0,0.00018356,7]
[408042005,1773066633058,-500.0,0.00018367,2]
[408042006,1773066633067,-2029.35857449,0.00018367,2]
[408042007,1773066633077,-166.66,0.00018474,2]
[408042008,1773066633086,-587.0,0.00018546,2]
[408042009,1773066633095,-421.0,0.00018609,2]
[408042011,1773066633104,-417.95,0.00018653,2]
[408042012,1773066633114,-200.0,0.00018723,2]
[408042013,1773066633123,-151.0,0.00018723,2]
[408042014,1773066633133,-151.0,0.00018723,2]
[408042016,1773066633142,-151.0,0.00018723,2]
[408042017,1773066633152,-151.0,0.00018723,2]
[408042018,1773066633162,-151.0,0.00018723,2]
[408042019,1773066633171,-151.0,0.00018723,2]
[408042020,1773066633181,-151.0,0.00018723,2]
[408042022,1773066633190,-202.29042562,0.00018723,2]
[408042023,1773066633199,-151.0,0.00018723,2]
[408042024,1773066633209,-151.0,0.00018723,2]
[408042025,1773066633219,-151.0,0.00018723,2]
[408042027,1773066633239,-151.0,0.00018723,2]
[408042028,1773066633249,-151.0,0.00018723,2]
[408042029,1773066633258,-151.0,0.00018723,2]
[408042030,1773066633267,-151.0,0.00018723,2]
[408042031,1773066633278,-151.0,0.00018723,2]
[408042033,1773066633288,-289.57214403,0.00018723,2]
[408042034,1773066633297,-2351.0,0.00018734,2]
[408042035,1773066633307,-2000.0,0.00018757,2]
[408042036,1773066633317,-152.0,0.00018781,4]
[408042038,1773066633326,-2000.0,0.00018838,2]
[408042039,1773066633335,-500.0,0.00018853,2]
[408042040,1773066633345,-174.61919141,0.00018853,2]
[408042041,1773066633355,-262.90206542,0.00018853,2]
[408042042,1773066633367,-5069.5365,0.000189,2]
[408042044,1773066633376,-2500.0,0.000189,2]
[408042045,1773066633385,-269.08264855,0.000189,2]
[408042046,1773066633396,-500.0,0.00018924,2]
[408042047,1773066633406,-500.0,0.00018924,2]
[408042049,1773066633415,-500.0,0.00018973,2]
[408042050,1773066633424,-500.0,0.00018973,2]
[408042051,1773066633434,-1385.16320373,0.00018997,4]
[408042052,1773066633443,-4820.12542113,0.00018999,2]
[408042053,1773066633455,-306.85218703,0.00018999,2]
[408042055,1773066633466,-232.73497124,0.00018999,2]